bitfinex/quotes_SOLUSD_20230905
["timestamp","ask_amount","ask_price","bid_price","bid_amount"]
[1693940687238,62.652,20.386,20.37,37.118]
[1693940687438,62.652,20.386,20.371,3.36125084]
[1693940691254,62.652,20.386,20.371,11.01825084]
[1693940691951,62.652,20.386,20.371,3.36125084]
[1693940699269,62.652,20.386,20.37,29.46]
[1693940699559,62.652,20.386,20.371,3.36125084]
[1693940704666,7.652,20.386,20.371,3.36125084]
[1693940704964,7.652,20.386,20.371,58.36125084]
[1693940707164,7.652,20.386,20.371,66.01825084]
[1693940722380,7.652,20.386,20.371,58.36125084]
[1693940731580,506.387,20.4,20.38,29.46]
[1693940731778,7.648,20.396,20.38,29.46]
[1693940733890,24.709,20.397,20.38,29.46]
[1693940733891,7.65,20.392,20.38,29.46]
[1693940736198,55.0,20.391,20.373,4.94461036]
[1693940736393,55.0,20.391,20.374,55.0]
[1693940736593,7.651,20.389,20.375,27.656]
[1693940745103,7.651,20.389,20.376,55.0]
[1693940745306,7.651,20.389,20.377,7.655]
[1693940745502,7.651,20.389,20.378,55.0]
[1693940746103,7.65,20.391,20.38,29.46]
[1693940746802,7.649,20.393,20.38,29.46]
[1693940746998,7.648,20.396,20.381,7.654]
[1693940747194,22.05789837,20.398,20.382,55.0]
[1693940747398,20.0,20.397,20.385,7.652]
[1693940748309,27.648,20.397,20.386,55.0]
[1693940748795,27.648,20.397,20.384,55.0]
[1693940750000,27.648,20.397,20.382,55.0]
[1693940750195,27.648,20.397,20.381,55.0]
[1693940750402,27.648,20.397,20.381,62.654]
[1693940753308,27.648,20.397,20.381,7.654]
[1693940753615,27.648,20.397,20.38,37.114]
[1693940753814,27.648,20.397,20.38,75.68514817]
[1693940754003,27.648,20.397,20.38,37.114]
[1693940754604,27.648,20.397,20.375,58.39842982]
[1693940754803,55.0,20.396,20.375,58.39842982]
[1693940755008,7.65,20.392,20.375,66.05442982]
[1693940756218,7.65,20.392,20.376,55.0]
[1693940756424,7.65,20.392,20.378,7.655]
[1693940756717,7.65,20.392,20.38,29.46]
[1693940763312,29.46,20.39,20.376,7.655]
[1693940763521,37.111,20.39,20.376,7.655]
[1693940765227,29.46,20.39,20.376,7.655]
[1693940765524,37.111,20.39,20.376,7.655]
[1693940766723,55.0,20.389,20.376,7.655]
[1693940766928,62.651,20.389,20.376,7.655]
[1693940768121,55.0,20.389,20.376,7.655]
[1693940769528,62.651,20.389,20.376,7.655]
[1693940771537,62.651,20.389,20.374,4.94461036]
[1693940771725,20.0,20.388,20.372,4.94461036]
[1693940771926,7.653,20.384,20.371,4.94461036]
[1693940772120,7.653,20.384,20.372,7.657]
[1693940772342,7.653,20.384,20.373,4.94461036]
[1693940773533,7.652,20.386,20.373,4.94461036]
[1693940773733,55.0,20.385,20.373,4.94461036]
[1693940774636,62.652,20.385,20.373,4.94461036]
[1693940780540,62.652,20.385,20.373,12.60161036]
[1693940780929,62.652,20.385,20.371,4.94461036]
[1693940783130,62.652,20.385,20.371,12.60161036]
[1693940784145,94.8853,20.384,20.371,12.60161036]
[1693940784327,55.0,20.383,20.371,12.60161036]
[1693940787743,62.653,20.383,20.371,4.94461036]
[1693940794654,55.0,20.383,20.373,7.657]
[1693940794850,94.8853,20.384,20.374,4.94461036]
[1693940795152,94.8853,20.384,20.377,7.655]
[1693940804074,94.8853,20.384,20.374,4.94461036]
[1693940804252,94.8853,20.384,20.373,4.94461036]
[1693940806167,94.8853,20.384,20.373,12.60061036]
[1693940814963,7.651,20.389,20.373,12.60061036]
[1693940815164,75.0,20.388,20.373,12.60061036]
[1693940815565,119.1798,20.388,20.374,55.0]
[1693940815762,119.1798,20.388,20.378,7.655]
[1693940816460,119.1798,20.388,20.375,7.656]
[1693940817567,126.8308,20.388,20.375,7.656]
[1693940820270,119.1798,20.388,20.375,7.656]
[1693940827176,37.11,20.39,20.375,7.656]
[1693940827368,7.65,20.392,20.376,55.0]
[1693940827570,7.65,20.392,20.379,7.654]
[1693940829174,55.0,20.391,20.377,7.655]
[1693940829377,7.651,20.39,20.377,7.655]
[1693940832181,55.0,20.391,20.377,7.655]
[1693940834182,7.65,20.392,20.377,7.655]
[1693940834389,92.6476,20.395,20.377,7.655]
[1693940834390,7.65,20.39,20.377,7.655]
[1693940842097,55.0,20.391,20.377,7.655]
[1693940846203,7.65,20.392,20.377,7.655]
[1693940846583,92.6476,20.395,20.38,29.46]
[1693940846799,55.0,20.394,20.382,7.653]
[1693940847096,62.649,20.394,20.38,37.114]
[1693940850292,62.649,20.394,20.38,29.46]
[1693940850498,62.649,20.394,20.378,7.655]
[1693940850692,62.649,20.394,20.376,7.655]
[1693940865902,62.649,20.394,20.38,29.46]
[1693940866106,62.649,20.394,20.381,7.654]
[1693940869094,7.649,20.394,20.381,7.654]
[1693940870303,92.6476,20.395,20.381,7.654]
[1693940870506,92.6476,20.395,20.382,55.0]
[1693940870705,92.6476,20.395,20.385,7.652]
[1693940871007,7.648,20.396,20.385,7.652]
[1693940871194,99.1654,20.395,20.385,7.652]
[1693940874996,106.8144,20.395,20.383,7.653]
[1693940875294,7.649,20.395,20.383,7.653]
[1693940877212,96.3862,20.399,20.384,55.0]
[1693940877409,75.0,20.398,20.386,7.651]
[1693940877714,82.647,20.398,20.386,7.651]
[1693940878212,75.0,20.398,20.386,7.651]
[1693940879315,82.648,20.398,20.386,7.651]
[1693940883713,27.648,20.398,20.386,7.651]
[1693940891321,7.648,20.398,20.386,7.651]
[1693940891516,7.647,20.4,20.386,7.651]
[1693940891825,7.647,20.4,20.39,29.46]
[1693940892822,7.647,20.4,20.385,38.91998035]
[1693940893122,55.0,20.399,20.385,38.91998035]
[1693940893305,7.648,20.396,20.384,7.652]
[1693940893508,7.648,20.396,20.385,75.0]
[1693940894325,7.648,20.396,20.385,82.652]
[1693940895928,107.5374,20.398,20.385,82.652]
[1693940896427,107.5374,20.398,20.385,7.652]
[1693940896630,55.0,20.397,20.382,7.653]
[1693940896822,7.649,20.393,20.383,20.0]
[1693940897413,7.649,20.393,20.381,20.0]
[1693940897607,7.649,20.393,20.381,27.653]
[1693940898728,7.649,20.393,20.381,7.653]
[1693940898912,55.0,20.392,20.378,7.655]
[1693940899112,7.651,20.388,20.378,7.655]
[1693940899420,7.651,20.388,20.376,7.655]
[1693940899920,35.85608393,20.399,20.38,29.46]
[1693940900127,20.0,20.398,20.385,7.652]
[1693940900322,7.646,20.401,20.385,7.652]
[1693940901728,55.0,20.4,20.385,7.652]
[1693940902425,62.647,20.4,20.385,7.652]
[1693940906926,55.0,20.4,20.385,7.652]
[1693940907125,55.0,20.401,20.385,7.652]
[1693940907841,55.0,20.401,20.39,7.65]
[1693940913534,62.646,20.401,20.39,7.65]
[1693940915023,55.0,20.401,20.39,7.65]
[1693940915224,55.0,20.403,20.39,37.11]
[1693940915430,62.646,20.403,20.39,37.11]
[1693940917325,62.646,20.403,20.39,7.65]
[1693940918420,62.646,20.403,20.387,7.651]
[1693940919036,62.646,20.403,20.39,29.46]
[1693940919843,62.646,20.403,20.39,37.11]
[1693940920745,95.3769,20.404,20.391,55.0]
[1693940920927,95.3769,20.404,20.393,7.649]
[1693940921128,95.3769,20.404,20.391,62.65]
[1693940921335,95.3769,20.404,20.391,7.65]
[1693940921537,7.645,20.406,20.391,7.65]
[1693940922341,7.644,20.408,20.392,55.0]
[1693940922527,27.644,20.407,20.392,62.649]
[1693940923441,20.0,20.407,20.392,62.649]
[1693940923638,20.0,20.409,20.392,62.649]
[1693940924140,7.644,20.407,20.392,62.649]
[1693940924639,7.644,20.407,20.392,7.649]
[1693940924839,55.0,20.406,20.39,37.11]
[1693940925143,7.645,20.403,20.39,37.11]
[1693940926042,7.645,20.403,20.391,55.0]
[1693940926242,7.645,20.403,20.391,62.65]
[1693940926442,7.645,20.405,20.391,62.65]
[1693940929740,7.643,20.41,20.391,62.65]
[1693940929954,96.0025,20.413,20.4,29.46]
[1693940930143,62.642,20.412,20.4,29.46]
[1693940930343,7.642,20.412,20.4,37.106]
[1693940931435,7.642,20.412,20.4,29.46]
[1693940931757,55.0,20.411,20.4,29.46]
[1693940931936,55.0,20.411,20.398,7.647]
[1693940932134,7.643,20.41,20.396,7.648]
[1693940932446,7.643,20.41,20.393,7.649]
[1693940932642,7.643,20.41,20.394,75.0]
[1693940932843,7.643,20.41,20.395,7.648]
[1693940937354,55.0,20.409,20.39,44.35548576]
[1693940937540,7.645,20.404,20.391,20.0]
[1693940940259,7.645,20.404,20.391,27.65]
[1693940941155,7.644,20.406,20.391,27.65]
[1693940945773,7.644,20.408,20.396,7.648]
[1693940945974,55.0,20.407,20.396,7.648]
[1693940952477,55.0,20.407,20.394,7.649]
[1693940952675,55.0,20.407,20.395,20.0]
[1693940953571,55.0,20.407,20.395,27.648]
[1693940955379,55.0,20.409,20.395,27.648]
[1693940957268,55.0,20.411,20.395,27.648]
[1693940957765,55.0,20.412,20.395,27.648]
[1693940958277,62.642,20.412,20.395,27.648]
[1693940959381,29.46,20.41,20.395,27.648]
[1693940959678,55.0,20.409,20.395,27.648]
[1693940960475,62.644,20.409,20.395,27.648]
[1693940961872,29.46,20.41,20.395,27.648]
[1693940962073,7.643,20.411,20.396,55.0]
[1693940962372,7.643,20.411,20.397,7.647]
[1693940963683,55.0,20.41,20.397,7.647]
[1693940964384,62.643,20.41,20.397,7.647]
[1693940966977,24.689,20.414,20.397,7.647]
[1693940967171,55.0,20.412,20.397,7.647]
[1693940968072,7.643,20.411,20.397,7.647]
[1693940970079,83.0611006,20.417,20.4,29.46]
[1693940970283,7.641,20.415,20.402,7.646]
[1693940973390,54.145,20.418,20.4,37.107]
[1693940973582,103.6445,20.413,20.4,37.107]
[1693940982983,103.6445,20.413,20.4,29.46]
[1693940984791,7.643,20.409,20.4,29.46]
[1693940985192,7.643,20.409,20.396,7.648]
[1693940985597,55.0,20.408,20.396,7.648]
[1693940986895,7.643,20.409,20.396,7.648]
[1693940987088,7.642,20.411,20.396,7.648]
[1693940987288,55.0,20.41,20.396,7.648]
[1693940987797,62.643,20.41,20.396,7.648]
[1693940999494,92.103,20.41,20.39,68.92244838]
[1693940999691,20.0,20.409,20.39,44.35548576]
[1693940999894,7.645,20.404,20.39,44.35548576]
[1693941000495,7.645,20.404,20.39,84.45749654]
[1693941001212,7.645,20.404,20.39,69.56201078]
[1693941001408,7.645,20.404,20.39,29.46]
[1693941001618,55.0,20.403,20.39,29.46]
[1693941001803,7.647,20.4,20.39,29.46]
[1693941005703,55.0,20.399,20.387,7.651]
[1693941005904,62.647,20.399,20.387,7.651]
[1693941006212,62.647,20.399,20.385,7.652]
[1693941006614,62.647,20.399,20.383,66.66385287]
[1693941006615,62.647,20.399,20.383,63.07603568]
[1693941006935,62.647,20.399,20.384,20.0]
[1693941007702,62.647,20.399,20.383,20.0]
[1693941008215,93.8065,20.398,20.384,7.653]
[1693941008518,62.648,20.397,20.385,20.0]
[1693941010018,62.648,20.397,20.38,29.46]
[1693941010219,62.648,20.397,20.374,4.94461036]
[1693941010516,62.648,20.397,20.37,29.46]
[1693941010517,29.46,20.39,20.371,12.60161036]
[1693941010813,7.652,20.385,20.371,12.60161036]
[1693941011021,7.652,20.387,20.371,12.60161036]
[1693941011413,148.8065,20.389,20.371,37.16857298]
[1693941011618,148.8065,20.389,20.372,24.56696262]
[1693941011807,148.8065,20.389,20.377,7.655]
[1693941015715,24.735,20.395,20.381,250.0]
[1693941015917,495.761,20.419,20.385,86.335]
[1693941016106,29.46,20.42,20.39,29.46]
[1693941016309,405.94,20.419,20.4,29.46]
[1693941016517,29.46,20.42,20.405,7.644]
[1693941016707,7.639,20.419,20.4,29.46]
[1693941016904,37.099,20.419,20.4,37.106]
[1693941017117,37.099,20.419,20.4,29.46]
[1693941017511,20.0,20.418,20.4,29.46]
[1693941017710,7.641,20.415,20.4,37.106]
[1693941017906,7.641,20.415,20.4,7.646]
[1693941018307,20.0,20.418,20.4,7.646]
[1693941018508,7.64,20.417,20.4,7.646]
[1693941019816,55.0,20.416,20.4,7.646]
[1693941020017,62.641,20.416,20.4,7.646]
[1693941025823,99.4406,20.415,20.4,7.646]
[1693941026030,7.642,20.413,20.4,7.646]
[1693941026228,7.642,20.413,20.398,7.647]
[1693941026529,55.0,20.412,20.398,7.647]
[1693941027316,62.642,20.412,20.398,7.647]
[1693941028517,55.0,20.412,20.4,29.19]
[1693941028717,55.0,20.414,20.401,7.646]
[1693941029728,107.0816,20.415,20.401,7.646]
[1693941030027,99.4406,20.415,20.401,7.646]
[1693941031032,55.0,20.414,20.401,7.646]
[1693941039227,99.4406,20.415,20.401,7.646]
[1693941040722,55.0,20.414,20.401,7.646]
[1693941042032,62.642,20.414,20.401,7.646]
[1693941042924,62.642,20.414,20.4,29.18]
[1693941043124,62.642,20.414,20.4,36.826]
[1693941044533,99.4406,20.415,20.4,36.826]
[1693941044837,55.0,20.414,20.405,7.645]
[1693941046242,99.4406,20.415,20.405,7.645]
[1693941047737,7.639,20.421,20.405,7.645]
[1693941049127,55.0,20.42,20.405,7.645]
[1693941049336,103.8373,20.424,20.41,29.18]
[1693941049639,103.8373,20.424,20.411,7.642]
[1693941050035,103.8373,20.424,20.41,29.18]
[1693941050827,55.0,20.423,20.41,29.18]
[1693941051027,62.638,20.423,20.41,29.18]
[1693941055534,62.638,20.423,20.402,38.59999999]
[1693941055736,62.638,20.423,20.403,20.0]
[1693941056340,62.638,20.423,20.401,20.0]
[1693941057637,62.638,20.423,20.402,55.0]
[1693941057833,62.638,20.423,20.403,20.0]
[1693941058535,62.638,20.423,20.401,20.0]
[1693941058736,62.638,20.423,20.402,55.0]
[1693941058940,62.638,20.423,20.403,20.0]
[1693941061047,62.638,20.423,20.401,20.0]
[1693941065249,62.638,20.423,20.401,44.56696262]
[1693941066755,62.638,20.423,20.402,79.56696262]
[1693941066959,62.638,20.423,20.403,20.0]
[1693941071865,55.0,20.423,20.403,20.0]
[1693941072269,62.638,20.423,20.403,20.0]
[1693941076871,62.638,20.423,20.404,20.0]
[1693941077075,62.638,20.423,20.401,20.0]
[1693941085881,62.638,20.423,20.401,44.56696262]
[1693941087080,62.638,20.423,20.401,96.75596329]
[1693941090278,29.18,20.42,20.401,96.75596329]
[1693941090478,7.64,20.417,20.401,96.75596329]
[1693941090680,55.0,20.416,20.401,96.75596329]
[1693941096090,55.0,20.418,20.401,96.75596329]
[1693941096492,62.64,20.418,20.401,96.75596329]
[1693941099187,62.64,20.418,20.4,29.18]
[1693941099188,87.324,20.418,20.4,29.18]
[1693941099387,20.0,20.417,20.392,14.62941176]
[1693941099584,7.643,20.41,20.394,30.0]
[1693941099787,55.0,20.409,20.394,30.0]
[1693941100478,97.958,20.408,20.395,20.0]
[1693941100979,97.958,20.408,20.393,20.0]
[1693941101179,55.0,20.407,20.393,20.0]
[1693941120006,97.958,20.408,20.393,20.0]
[1693941120215,97.958,20.408,20.4,29.18]
[1693941124513,7.641,20.416,20.4,29.18]
[1693941124706,55.0,20.415,20.4,29.18]
[1693941125722,62.641,20.415,20.4,29.18]
[1693941125906,91.7017,20.414,20.4,29.18]
[1693941126107,55.0,20.413,20.4,29.18]
[1693941126716,62.642,20.413,20.4,29.18]
[1693941129517,62.642,20.413,20.394,89.37752966]
[1693941129715,62.642,20.413,20.395,20.0]
[1693941129918,62.642,20.413,20.393,20.0]
[1693941130321,29.18,20.41,20.393,20.0]
[1693941130619,7.644,20.406,20.393,20.0]
[1693941131125,55.0,20.405,20.393,20.0]
[1693941131612,154.8842,20.405,20.393,20.0]
[1693941136529,154.8842,20.405,20.393,27.649]
[1693941137030,154.8842,20.405,20.393,20.0]
[1693941140515,154.8842,20.405,20.39,29.18]
[1693941140516,7.645,20.404,20.39,29.18]
[1693941140737,55.0,20.403,20.382,42.94104324]
[1693941140920,7.647,20.399,20.384,0.29412485]
[1693941141121,55.0,20.398,20.384,0.29412485]
[1693941141321,7.648,20.397,20.384,0.29412485]
[1693941141516,55.0,20.396,20.384,0.29412485]
[1693941142633,90.6798,20.395,20.384,0.29412485]
[1693941143024,90.6798,20.395,20.382,0.29412485]
[1693941143237,90.6798,20.395,20.382,0.23254737]
[1693941143630,90.6798,20.395,20.382,0.1709699]
[1693941144032,90.6798,20.395,20.382,0.10939242]
[1693941144236,90.6798,20.395,20.381,34.42030406]
[1693941145230,90.6798,20.395,20.382,7.653]
[1693941145432,90.6798,20.395,20.383,20.0]
[1693941146424,90.6798,20.395,20.384,7.653]
[1693941146626,7.645,20.404,20.385,24.56696262]
[1693941146848,7.645,20.404,20.39,29.18]
[1693941147138,36.825,20.404,20.39,29.18]
[1693941147926,55.0,20.403,20.39,29.18]
[1693941150341,62.646,20.403,20.39,29.18]
[1693941166445,62.646,20.403,20.383,20.0]
[1693941166645,62.646,20.403,20.384,55.0]
[1693941166856,62.646,20.403,20.385,20.0]
[1693941167354,62.646,20.403,20.384,20.0]
[1693941177561,29.18,20.4,20.384,20.0]
[1693941177761,7.648,20.397,20.384,20.0]
[1693941178062,55.0,20.396,20.382,20.0]
[1693941179675,55.0,20.398,20.382,20.0]
[1693941179875,7.648,20.397,20.381,14.42030406]
[1693941180171,7.65,20.392,20.38,29.18]
[1693941180571,55.0,20.391,20.38,29.18]
[1693941183477,55.0,20.391,20.38,36.834]
[1693941184068,7.648,20.395,20.38,36.834]
[1693941184282,55.0,20.394,20.38,29.18]
[1693941186373,7.649,20.393,20.38,29.18]
[1693941186581,55.0,20.392,20.38,29.18]
[1693941187783,152.5669,20.392,20.38,29.18]
[1693941188584,7.65,20.391,20.38,29.18]
[1693941188771,55.0,20.39,20.38,29.18]
[1693941189584,62.651,20.39,20.374,4.94461036]
[1693941189882,62.651,20.39,20.371,32.60161036]
[1693941191489,62.651,20.39,20.371,57.16857298]
[1693941192289,62.651,20.39,20.371,111.47966227]
[1693941196390,91.831,20.39,20.371,111.47966227]
[1693941197297,62.651,20.39,20.371,111.47966227]
[1693941199685,62.651,20.39,20.372,79.56696262]
[1693941199906,55.0,20.39,20.375,7.656]
[1693941200104,55.0,20.391,20.38,29.18]
[1693941200692,97.5669,20.392,20.38,29.18]
[1693941201201,7.649,20.394,20.38,29.18]
[1693941202104,55.0,20.393,20.38,29.18]
[1693941203307,90.8129,20.392,20.38,29.18]
[1693941203603,55.0,20.391,20.38,29.18]
[1693941210514,7.65,20.39,20.38,29.18]
[1693941210702,55.0,20.389,20.374,4.94461036]
[1693941210904,62.651,20.389,20.374,4.94461036]
[1693941215415,55.0,20.389,20.375,7.656]
[1693941215615,90.8129,20.392,20.38,29.18]
[1693941216712,55.0,20.391,20.38,29.18]
[1693941219417,29.18,20.39,20.374,4.94461036]
[1693941219630,7.652,20.386,20.372,4.94461036]
[1693941219918,7.652,20.386,20.371,4.94461036]
[1693941220106,55.0,20.385,20.371,4.94461036]
[1693941221527,153.2053,20.385,20.371,4.94461036]
[1693941225314,160.8583,20.385,20.371,4.94461036]
[1693941239415,98.2053,20.385,20.371,4.94461036]
[1693941239611,7.651,20.388,20.373,7.657]
[1693941239818,92.4851,20.389,20.374,24.94461036]
[1693941240635,7.651,20.389,20.374,24.94461036]
[1693941240832,55.0,20.388,20.373,24.94461036]
[1693941241628,55.0,20.388,20.373,4.94461036]
[1693941241831,7.652,20.387,20.373,24.94461036]
[1693941242036,55.0,20.386,20.373,24.94461036]
[1693941242423,55.0,20.386,20.374,7.656]
[1693941242616,55.0,20.386,20.375,20.0]
[1693941243331,55.0,20.386,20.373,24.94461036]
[1693941246935,55.0,20.386,20.374,20.0]
[1693941247138,55.0,20.386,20.373,4.94461036]
[1693941249329,55.0,20.388,20.373,4.94461036]
[1693941249534,55.0,20.388,20.374,7.656]
[1693941249729,55.0,20.388,20.375,20.0]
[1693941250343,55.0,20.388,20.373,24.94461036]
[1693941254342,55.0,20.388,20.374,7.656]
[1693941254540,55.0,20.388,20.374,12.60061036]
[1693941254746,55.0,20.388,20.374,4.94461036]
[1693941254946,55.0,20.388,20.374,24.94461036]
[1693941255441,55.0,20.388,20.374,20.0]
[1693941255641,55.0,20.388,20.373,24.94461036]
[1693941257236,7.652,20.386,20.373,24.94461036]
[1693941257430,7.652,20.386,20.372,4.94461036]
[1693941257631,55.0,20.385,20.372,4.94461036]
[1693941270742,62.652,20.385,20.372,4.94461036]
[1693941270940,62.652,20.385,20.371,4.94461036]
[1693941279653,29.18,20.38,20.365,4.94461036]
[1693941279857,7.656,20.376,20.362,4.94461036]
[1693941280048,55.0,20.375,20.362,4.94461036]
[1693941280360,55.0,20.375,20.362,19.83999345]
[1693941280858,55.0,20.375,20.364,4.94461036]
[1693941281253,94.9464,20.374,20.364,4.94461036]
[1693941281451,55.0,20.373,20.364,4.94461036]
[1693941285762,55.0,20.375,20.363,4.94461036]
[1693941285958,55.0,20.375,20.363,24.94461036]
[1693941287566,96.3482,20.374,20.363,24.94461036]
[1693941287865,96.3482,20.374,20.363,49.51157298]
[1693941288951,7.655,20.378,20.363,49.51157298]
[1693941289356,55.0,20.377,20.363,49.51157298]
[1693941289771,149.6914,20.377,20.363,49.51157298]
[1693941291266,94.6914,20.377,20.37,29.18]
[1693941291471,94.6914,20.377,20.371,4.94461036]
[1693941292370,7.654,20.382,20.371,4.94461036]
[1693941293570,55.0,20.381,20.371,4.94461036]
[1693941295780,55.0,20.381,20.37,29.18]
[1693941296264,55.0,20.381,20.371,4.94461036]
[1693941297468,7.654,20.379,20.371,4.94461036]
[1693941297658,7.654,20.379,20.37,29.18]
[1693941297854,7.654,20.379,20.365,4.94461036]
[1693941297855,55.0,20.378,20.365,4.94461036]
[1693941298059,55.0,20.378,20.364,4.94461036]
[1693941298060,152.2834,20.378,20.364,4.94461036]
[1693941300464,7.655,20.377,20.364,4.94461036]
[1693941300673,55.0,20.376,20.364,4.94461036]
[1693941302065,55.0,20.376,20.363,4.94461036]
[1693941302264,55.0,20.376,20.363,24.94461036]
[1693941302465,55.0,20.376,20.363,4.94461036]
[1693941302675,55.0,20.376,20.363,24.94461036]
[1693941303063,7.656,20.375,20.363,4.94461036]
[1693941303260,55.0,20.374,20.361,4.94461036]
[1693941305479,97.2834,20.378,20.362,7.661]
[1693941305682,97.2834,20.378,20.37,29.18]
[1693941306190,97.2834,20.378,20.371,4.94461036]
[1693941307573,36.833,20.383,20.371,4.94461036]
[1693941307773,91.6211,20.382,20.371,4.94461036]
[1693941308694,55.0,20.381,20.371,4.94461036]
[1693941312973,7.654,20.38,20.371,4.94461036]
[1693941313271,55.0,20.379,20.364,7.66]
[1693941313470,55.0,20.379,20.366,4.94461036]
[1693941313883,55.0,20.379,20.366,12.60361036]
[1693941314692,55.0,20.379,20.366,4.94461036]
[1693941315279,7.655,20.378,20.366,4.94461036]
[1693941315484,55.0,20.377,20.366,4.94461036]
[1693941315684,55.0,20.377,20.365,4.94461036]
[1693941315885,55.0,20.377,20.365,24.94461036]
[1693941318483,55.0,20.378,20.365,24.94461036]
[1693941322684,7.655,20.377,20.365,24.94461036]
[1693941322992,7.655,20.377,20.365,4.94461036]
[1693941323193,7.655,20.377,20.364,4.94461036]
[1693941326298,55.0,20.378,20.37,29.18]
[1693941326478,91.6211,20.382,20.371,4.94461036]
[1693941326886,99.2741,20.382,20.371,4.94461036]
[1693941327897,7.654,20.38,20.371,4.94461036]
[1693941328081,55.0,20.379,20.371,4.94461036]
[1693941329592,7.655,20.378,20.371,4.94461036]
[1693941329800,55.0,20.377,20.371,4.94461036]
[1693941329986,55.0,20.377,20.364,4.94461036]
[1693941331500,55.0,20.377,20.37,29.18]
[1693941331901,120.8011,20.382,20.371,7.657]
[1693941332201,55.0,20.381,20.372,4.94461036]
[1693941332388,7.654,20.38,20.371,4.94461036]
[1693941333309,91.6211,20.382,20.371,4.94461036]
[1693941333696,55.0,20.381,20.371,4.94461036]
[1693941334199,91.6211,20.382,20.371,4.94461036]
[1693941335892,91.6211,20.382,20.371,12.60161036]
[1693941340501,7.655,20.379,20.371,4.94461036]
[1693941340816,7.655,20.379,20.364,4.94461036]
[1693941340817,7.656,20.377,20.364,4.94461036]
[1693941341009,55.0,20.376,20.364,4.94461036]
[1693941341608,62.656,20.376,20.364,4.94461036]
[1693941341801,62.656,20.376,20.364,24.94461036]
[1693941342304,62.656,20.376,20.364,4.94461036]
[1693941342511,62.656,20.376,20.363,4.94461036]
[1693941345090,55.0,20.376,20.363,12.60461036]
[1693941345293,55.0,20.376,20.364,20.0]
[1693941345605,96.6029,20.375,20.364,20.0]
[1693941346504,104.2589,20.375,20.364,20.0]
[1693941347398,96.6029,20.375,20.365,7.659]
[1693941347898,96.6029,20.375,20.371,4.94461036]
[1693941349010,96.6029,20.375,20.37,29.18]
[1693941349193,27.654,20.381,20.37,29.18]
[1693941349395,55.0,20.38,20.371,4.94461036]
[1693941349597,7.654,20.379,20.37,29.18]